Workbook

Sheet AzureModeler
B2: Azure Modeler for Business Workloads Monthly Estimate with Azure/Office 365 and Dynamics ERP & CRM Online Solutions | C2: ="Avg. Monthly Per User " & CHAR(10) & CHAR(10) & TEXT(((SUM(F17:F22))/TotalUserCount*AzureRunHoursDiscount) +SUM(L18:L22),CurrencySymbol&"#,###") -> Avg. Monthly Per User $45 | E2: Customer Name: | G2: Sample ERP 3 Users | J2: Modeler Instructions: Hover over green 'Get Started ' to get started
B3: ="Monthly Azure : " & TEXT( (SUM(F17:F22)*AzureRunHoursDiscount)/TotalUserCount,CurrencySymbol&"#,###") & " Non-Azure : " & TEXT(SUM(L18:L22),CurrencySymbol&"#,##0") -> Monthly Azure : $45 Non-Azure : $0 | C3: =IF(OR(Office365="Yes",CRMOLOption="Yes"),MAX(O365Users,CRMOLUsers),SUM(C6:C8)) -> 3 | D3: =SUM(C6:C8) -> 3 | J3: Azure Pricing online
B5: Dynamics ERP Server and Users | C5: Azure Price Options | D5: USD | E5: Standard Tier | F5: Get Started | G5: Server Options & Discounts | I5: GP | J5: ="Dynamics " & BaseProduct & " Server Matrix Options" -> Dynamics GP Server Matrix Options | K5: User # Lower Limit | L5: Users # Upper Limit | M5: Separate SQL Server
B6: Dynamics ERP Users | C6: 3 | F6: 24 | G6: Daily Scheduled Runtime Hrs for Azure Servers | H6: =DailyRunHours/24 -> 1 | I6: =Settings!E24 -> Small | J6: =Settings!F24 -> VM-A2 | K6: =Settings!G24 -> 1 | L6: =Settings!H24 -> 3 | M6: =Settings!I24 -> No | N6: Small | O6: Yes
B7: Dynamics ERP Web Client Users & Load factor | C7: 0 | D7: 0.5 | F7: PERP | G7: =IF(F7="PERP","Dynamics ERP License Type - " & "Perpetual/Purchase","Dynamics ERP License Type " & "Monthly") -> Dynamics ERP License Type - Perpetual/Purchase | I7: =Settings!E25 -> Medium | J7: =Settings!F25 -> VM-A3 | K7: =Settings!G25 -> 4 | L7: =Settings!H25 -> 7 | M7: =Settings!I25 -> Yes | N7: Medium | O7: No
B8: Dynamics ERP Limited Users/CALs & Load Factor | C8: 0 | D8: 0.25 | F8: PERP | G8: =IF(F8="VM-SQL","SQL Virtual Machine - w/SQL License inclued","SQL Server License - " & "Purchased w/License Mobility") -> SQL Server License - Purchased w/License Mobility | I8: =Settings!E26 -> Large | J8: =Settings!F26 -> VM-A3 | K8: =Settings!G26 -> 8 | L8: =Settings!H26 -> 20 | M8: =Settings!I26 -> Yes | N8: Large | O8: 6
B9: ="Total Adjusted Users - (Adjustment factor) " & TEXT(WebClientPerformanceFactor,"0%") -> Total Adjusted Users - (Adjustment factor) 50% | C9: =ROUNDUP(DesktopCALs+(WebClientCALs*WebClientPerformanceFactor)+ (LimitedUserCALs*LimitedUserPerformanceFactor),0) -> 3 | F9: No | G9: Separate Domain Controller | I9: =Settings!E27 -> XLarge | J9: =Settings!F27 -> VM-A5 | K9: =Settings!G27 -> 21 | L9: =Settings!H27 -> 40 | M9: =Settings!I27 -> Yes | N9: Xlarge | O9: 12 | P9: =IF(ExcelVersionNo<15,checkisformula(C9),_xlfn.ISFORMULA(C9)) -> TRUE
B10: Microsoft Office 365 Users | C10: =ERPUserCount -> 3 | F10: No | G10: =I10 -> Microsoft Office 365 Business Premium | I10: Microsoft Office 365 Business Premium | K10: 15 | P10: =IF(ExcelVersionNo<15,checkisformula(C10),_xlfn.ISFORMULA(C10)) -> TRUE
B11: Microsoft CRM Online Users | C11: =ERPUserCount -> 3 | F11: No | G11: Dynamics CRM Online | I11: Microsoft CRM OnLine | K11: 65
B12: Dynamics ERP Server/Azure VM | C12: =IFERROR(VLOOKUP(AdjustedCALs,K6:N9,4,TRUE),"") -> Small | D12: =IFERROR(VLOOKUP(BaseServerSize,I6:J9,2,TRUE),"") -> VM-A2 | F12: No | G12: Remote Desktop SPLA Agreement | I12: Remote Desktop Azure SPLA Agreement | K12: 4
B13: Azure VM SQL Server Type | C13: SW | D13: =IF(SQLServerType="SS","SQL Standard",IF(SQLServerType="SW","SQL Web","SQL Enterprise")) -> SQL Web | F13: No | G13: Separate SQL Reporting Service Server | I13: Microsoft Dynamics ERP Subscription User/Mth | K13: 100
B14: Financing Software and Services (Rate %/Period Mths) | C14: 0.1 | D14: 24 | F14: No | G14: =IF(TypeOfERPLicence="PERP","Finance Software and Services Option","Finance Services Option") -> Finance Software and Services Option | I14: Finance Amount / Mth Payment | K14: 5000 | L14: =IF(FinanceOption="Yes",PMT(FinanceRate/12,FinancePeriod,FinanceAmount)*-1,0) -> 0
B15: Azure 99.95% SLA Requirement | C15: No | F15: No | G15: =IF(TypeOfERPLicence="SPLA","Partner Implementation Services","Partner Implementation Estimate & License") -> Partner Implementation Estimate & License | I15: =IF(TypeOfERPLicence="SPLA","Partner Implementation Estimate Only","Partner Implementation Estimate & License") -> Partner Implementation Estimate & License | K15: 5000
B16: ="Azure Resources Schedule - " & AzureTier & " VMs" -> Azure Resources Schedule - Standard Tier VMs | C16: Type | D16: Qty | E16: Cost / Hr. | F16: Est. per Month | G16: Azure Resource Description | I16: Dynamics ERP License & Other Monthly Services Estimate:
B17: =IFERROR(IF(VLOOKUP(AdjustedCALs,MachineIndex,3,TRUE)="No", IF(LEFT(C17,1)="S","Windows & SQL Server VM","Windows VM - Assume SQL License Mobility"), "Windows VM"),"") -> Windows VM - Assume SQL License Mobility | C17: =IFERROR(IF(VLOOKUP(AdjustedCALs,MachineIndex,3,TRUE)="Yes", VM, IF(TypeOfSQLLicense<>"VM-SQL",VM,SQLServerType &"-" & MID(D12,4,2))),"") -> VM-A2 | D17: =IF(AzureSLA="Yes",2,1) -> 1 | E17: =IFERROR(INDEX(AzurePricing!A3:N86,(MATCH(ServerClass1Type,AzurePricing!A3:A86,0)), IF(AzureTier="Basic Tier",MATCH(Currency,AzurePricing!A1:N1,0),MATCH(Currency,AzurePricing!A1:N1,0)+1)),"") -> 0.18 | F17: =IFERROR(D17*(E17*744),"") -> 133.92 | G17: =IFERROR(IF(E17<>0.0001,IF(VLOOKUP(AdjustedCALs,MachineIndex,3,TRUE)="No", INDEX(AzurePricing!$A$99:$C$170,MATCH(ServerClass1Type,AzurePricing!$A$99:$A$170,0),2,1), INDEX(AzurePricing!$A$99:$C$170,MATCH(ServerClass1Type,AzurePricing!$A$99:$A$170,0),2,1)),"Not available on Basic Tier"),"") -> A2 Medium (2 cores, 3.5GB RAM) | H17: =TEXT(ServerClass1Mth,CurrencySymbol&"#,###") -> $134 | I17: Optional Services User/Mth | K17: Users | L17: Per Mth | N17: =IF(ExcelVersionNo<15,checkisformula(C17),_xlfn.ISFORMULA(C17)) -> TRUE | O17: =IF(ExcelVersionNo<15,checkisformula(D17),_xlfn.ISFORMULA(D17)) -> TRUE | P17: =IF(ExcelVersionNo<15,checkisformula(E17),_xlfn.ISFORMULA(E17)) -> TRUE
B18: =IF(DomainController="Yes",G9,"Windows VM 2") -> Windows VM 2 | C18: VM-A1 | D18: =IF(DomainController="No",0,IF(AzureSLA="Yes",2,1)) -> 0 | E18: =INDEX(AzurePricing!A3:N87,(MATCH(ServerClass2Type,AzurePricing!A3:A87,0)), IF(AzureTier="Basic Tier",MATCH(Currency,AzurePricing!A1:N1,0),MATCH(Currency,AzurePricing!A1:N1,0)+1)) -> 0.09 | F18: =D18*(E18*744) -> 0 | G18: =IF(E18<>0.0001,INDEX(AzurePricing!$A$99:$C$170,MATCH(C18,AzurePricing!$A$99:$A$170,0),2,1),"Not Available on Basic Tier") -> A1 Small (1 core, 1.75GB RAM) | H18: =TEXT(ServerClass2Mth,CurrencySymbol&"#,###") -> $ | I18: RDS SPLA | J18: Remote Desktop Services | K18: =DesktopCALs -> 3 | L18: =IF(F12="Yes",RDPSPLA,0) -> 0 | M18: =IF(RDServices="Yes",K18*L18,0) -> 0 | N18: =IF(ExcelVersionNo<15,checkisformula(C18),_xlfn.ISFORMULA(C18)) -> FALSE | O18: =IF(ExcelVersionNo<15,checkisformula(D18),_xlfn.ISFORMULA(D18)) -> TRUE | P18: =IF(ExcelVersionNo<15,checkisformula(E18),_xlfn.ISFORMULA(E18)) -> TRUE
B19: =IFERROR(IF(VLOOKUP(AdjustedCALs,MachineIndex,3,TRUE)="Yes", IF(TypeOfSQLLicense="VM-SQL","Dedicated SQL VM Machine","Windows VM for SQL w/License Mobility"), IF(TypeOfSQLLicense<>"PERP","Windows SQL VM Machine","Windows VM Machine")),"") -> Windows VM Machine | C19: =IFERROR(IF(VLOOKUP(AdjustedCALs,MachineIndex,3,TRUE)="Yes", IF(TypeOfSQLLicense="VM-SQL",SQLServerType & "-"& MID(VM,4,2),"VM-"&MID(VM,4,2)), IF(TypeOfSQLLicense<>"VM-SQL","VM-"&MID(VM,4,2),"VM-"&MID(VM,4,2))),"") -> VM-A2 | D19: =IFERROR(IF(VLOOKUP(AdjustedCALs,MachineIndex,3,TRUE)="Yes",(IF(AzureSLA="Yes",2,1)),0),"") -> 0 | E19: =IFERROR(INDEX(AzurePricing!A3:N86,(MATCH(ServerClass3Type,AzurePricing!A3:A86,0)), IF(AzureTier="Basic Tier",MATCH(Currency,AzurePricing!A1:N1,0),MATCH(Currency,AzurePricing!A1:N1,0)+1)),"") -> 0.18 | F19: =IFERROR(D19*(E19*744),"") -> 0 | G19: =IFERROR(IF(E19<>0.0001,IF(VLOOKUP(AdjustedCALs,MachineIndex,3,TRUE)="Yes", INDEX(AzurePricing!$A$99:$C$170,MATCH(C19,AzurePricing!$A$99:$A$170,0),2,1), INDEX(AzurePricing!$A$99:$C$170,MATCH(C19,AzurePricing!$A$99:$A$170,0),2,1)),"Not available on Basic Tier"),"") -> A2 Medium (2 cores, 3.5GB RAM) | H19: =TEXT(ServerClass3Mth,CurrencySymbol&"#,###") -> $ | I19: ERP SPLA | J19: Dynamics ERP SPLA License | K19: =DesktopCALs+WebClientCALs -> 3 | L19: =IF(TypeOfERPLicence="SPLA",K13,0) -> 0 | M19: =IF(TypeOfERPLicence="SPLA",K19*L19,0) -> 0 | N19: =IF(ExcelVersionNo<15,checkisformula(C19),_xlfn.ISFORMULA(C19)) -> TRUE | O19: =IF(ExcelVersionNo<15,checkisformula(D19),_xlfn.ISFORMULA(D19)) -> TRUE | P19: =IF(ExcelVersionNo<15,checkisformula(E19),_xlfn.ISFORMULA(E19)) -> TRUE
B20: SQL Server Reporting Service (Optional) | C20: SW-A1 | D20: =IF(SRSServer="Yes",1,0) -> 0 | E20: =INDEX(AzurePricing!A3:N86,(MATCH(ServerClass4Type,AzurePricing!A3:A86,0)), IF(AzureTier="Basic Tier",MATCH(Currency,AzurePricing!A1:N1,0),MATCH(Currency,AzurePricing!A1:N1,0)+1)) -> 0.122 | F20: =D20*(E20*744) -> 0 | G20: =INDEX(AzurePricing!$A$99:$C$170,MATCH(C20,AzurePricing!$A$99:$A$170,0),2,1) -> A1 Small (1 core, 1.75GB RAM) | H20: =TEXT(ServerClass4Mth,CurrencySymbol&"#,###") -> $ | I20: Other | J20: Partner added monthly services | K20: =DesktopCALs+WebClientCALs -> 3 | L20: 0 | M20: =IF(PartnerFeesOption="Yes",K20*L20,0) -> 0 | N20: =IF(ExcelVersionNo<15,checkisformula(C20),_xlfn.ISFORMULA(C20)) -> FALSE | O20: =IF(ExcelVersionNo<15,checkisformula(D20),_xlfn.ISFORMULA(D20)) -> TRUE | P20: =IF(ExcelVersionNo<15,checkisformula(E20),_xlfn.ISFORMULA(E20)) -> TRUE
B21: Additional Disk Storage | C21: A-5GB | F21: =IF(ISERROR(FIND("5GB",C21)),INDEX(AzurePricing!$A$93:$D$96,MATCH(C21,AzurePricing!$A$93:$A$96),4,1),0) -> 0 | G21: =IF(ISERROR(FIND("5GB",C21)),INDEX(AzurePricing!$A$93:$D$96,MATCH(C21,AzurePricing!$A$93:$A$96,0),2,1),"First 5 GB Storage Free") -> First 5 GB Storage Free | I21: O365 | J21: Microsoft Office 365 | K21: =IF(Office365="Yes",IF(O365Users>0,O365Users,DesktopCALs+WebClientCALs),0) -> 0 | L21: =IF(Office365="Yes",O365PlanCost,0) -> 0 | M21: =IF(Office365="Yes",K21*L21,0) -> 0 | N21: =IF(ExcelVersionNo<15,checkisformula(C21),_xlfn.ISFORMULA(C21)) -> FALSE | O21: =IF(ExcelVersionNo<15,checkisformula(D21),_xlfn.ISFORMULA(D21)) -> FALSE | P21: =IF(ExcelVersionNo<15,checkisformula(E21),_xlfn.ISFORMULA(E21)) -> FALSE
B22: Dedicated Remote Desktop Server | C22: =IF(AND(DesktopCALs>RDSUserCount,RDServices="Yes"),ServerClass1Type,"") ->  | D22: =IF(AND(DesktopCALs>5,RDServices="Yes"),1,"") ->  | E22: =IFERROR(INDEX(AzurePricing!A3:N86,(MATCH(ServerClass5Type,AzurePricing!A3:A86,0)), IF(AzureTier="Basic Tier",MATCH(Currency,AzurePricing!A1:N1,0),MATCH(Currency,AzurePricing!A1:N1,0)+1)),"") ->  | F22: =IFERROR(D22*(E22*744),"") ->  | G22: =IF(ISNA(INDEX(AzurePricing!$A$99:$C$170,MATCH(C22,AzurePricing!$A$99:$A$170,0),2,1)),"",INDEX(AzurePricing!$A$99:$C$170,MATCH(C22,AzurePricing!$A$99:$A$170,0),2,1)) ->  | H22: =TEXT(ServerClass5Mth,CurrencySymbol&"#,###") ->  | I22: CRMOL | J22: Microsoft CRM Online | K22: =IF(CRMOLOption="Yes",IF(CRMOLUsers>0,CRMOLUsers,DesktopCALs+WebClientCALs),0) -> 0 | L22: =IF(CRMOLOption="Yes",CRMOLPlanCost,0) -> 0 | M22: =IF(CRMOLOption="Yes",K22*L22,0) -> 0 | N22: =IF(ExcelVersionNo<15,checkisformula(C22),_xlfn.ISFORMULA(C22)) -> TRUE | O22: =IF(ExcelVersionNo<15,checkisformula(D22),_xlfn.ISFORMULA(D22)) -> TRUE | P22: =IF(ExcelVersionNo<15,checkisformula(E22),_xlfn.ISFORMULA(E22)) -> TRUE
I23: Upfront | J23: =IF(TypeOfERPLicence="SPLA","Partner License & Implementation","Partner License & Implementation") -> Partner License & Implementation | L23: =IF(PartnerFeesOption="Yes",PartnerFees,0) -> 0 | M23: =IF(PartnerFeesOption="Yes",K15,0) -> 0
B24: ="4 Year Cost Model on Azure - Year 1: "&TEXT(AzureCostYear1,CurrencySymbol&"##,##0")&" Year 2: "&TEXT(AzureCostYear2,CurrencySymbol&"##,##0")&" Year 3: "&TEXT(AzureCostYear3,CurrencySymbol&"##,##0")&" Year 4: "&TEXT(AzureCostYear4,CurrencySymbol&"##,##0")&" - Total 4 Year Investment: "&TEXT(ROUNDUP(SUM(AzureCostYear1,AzureCostYear2,AzureCostYear3,AzureCostYear4),0)+FinanceTotal,CurrencySymbol&"##,##0") -> 4 Year Cost Model on Azure - Year 1: $1,607 Year 2: $1,607 Year 3: $1,607 Year 4: $1,607 - Total 4 Year Investment: $6,429 | I24: ="Azure Only Model Estimate Per Year: " &CHAR(10) & TEXT(SUM($F$17:$F$22)*AzureRunHoursDiscount*12,CurrencySymbol&"#,##0") & " Monthly: " &CHAR(10) & TEXT(SUM($F$17:$F$22)*AzureRunHoursDiscount,CurrencySymbol&"#,##0") -> Azure Only Model Estimate Per Year: $1,607 Monthly: $134 | M24: =SUM(F17:F22)*H6 +SUM(M18:M22) -> 133.92
B25: * Note: Microsoft Azure prices do change periodically. | L25: Last Model Delta (4 YR) | M25: =MthUserTotal*48-N25+M23 -> 0 | N25: 6428.16
B26: ="It is important for you to confirm that you have the most current Azure prices. The 'as of' prices in this calculator are " & TEXT(AzureUpdateDate,"mm/dd/yyyy HH:MM AM/PM") -> It is important for you to confirm that you have the most current Azure prices. The 'as of' prices in this calculator are 02/12/2015 02:47 PM
B27: Disclaimer: This tool is provided for informational purposes only and subject to further changes and modifications. Microsoft makes no warranties, express or implied, as to the tool and any results generated from the tool. | M27: =" v3.3.7:" & ExcelVersion() -> v3.3.7:15.0
B35: Finance Yearly Recap | C35: =IF(AND(FinanceOption="Yes",FinancePeriod>11),FinanceMthPayment*12,0) -> 0 | D35: =IF(AND(FinanceOption="Yes",FinancePeriod>23),FinanceMthPayment*12,0) -> 0 | E35: =IF(AND(FinanceOption="Yes",FinancePeriod>35),FinanceMthPayment*12,0) -> 0 | F35: =IF(AND(FinanceOption="Yes",FinancePeriod>47),FinanceMthPayment*12,0) -> 0 | G35: =SUM(C35:F35) -> 0

Sheet ProspectWorksheet
B2: =PartnerName&" Microsoft Cloud Planning Model for " &": "&DesktopCALs+WebClientCALs&" Dynamics " & BaseProduct & " users" & " for " & CustomerName -> Contoso Solutions Inc. Microsoft Cloud Planning Model for : 3 Dynamics GP users for Sample ERP 3 Users
B3: Microsoft Azure Resources Schedule | C3: Type | D3: Qty | E3: Cost / Hr. | F3: Cost per Month | G3: Azure Resource Description
B4: =AzureModeler!B17 -> Windows VM - Assume SQL License Mobility | C4: =AzureModeler!C17 -> VM-A2 | D4: =AzureModeler!D17 -> 1 | E4: =AzureModeler!E17 -> 0.18 | F4: =AzureModeler!F17 -> 133.92 | G4: =AzureModeler!G17 -> A2 Medium (2 cores, 3.5GB RAM)
B5: =AzureModeler!B18 -> Windows VM 2 | C5: =AzureModeler!C18 -> VM-A1 | D5: =AzureModeler!D18 -> 0 | E5: =AzureModeler!E18 -> 0.09 | F5: =AzureModeler!F18 -> 0 | G5: =AzureModeler!G18 -> A1 Small (1 core, 1.75GB RAM)
B6: =AzureModeler!B19 -> Windows VM Machine | C6: =AzureModeler!C19 -> VM-A2 | D6: =AzureModeler!D19 -> 0 | E6: =AzureModeler!E19 -> 0.18 | F6: =AzureModeler!F19 -> 0 | G6: =AzureModeler!G19 -> A2 Medium (2 cores, 3.5GB RAM)
B7: =AzureModeler!B20 -> SQL Server Reporting Service (Optional) | C7: =AzureModeler!C20 -> SW-A1 | D7: =AzureModeler!D20 -> 0 | E7: =AzureModeler!E20 -> 0.122 | F7: =AzureModeler!F20 -> 0 | G7: =AzureModeler!G20 -> A1 Small (1 core, 1.75GB RAM)
B8: =AzureModeler!B22 -> Dedicated Remote Desktop Server | C8: =AzureModeler!C22 ->  | D8: =AzureModeler!D22 ->  | E8: =AzureModeler!E22 ->  | F8: =AzureModeler!F22 ->  | G8: =AzureModeler!G22 -> 
B9: =AzureModeler!B21 -> Additional Disk Storage | C9: =AzureModeler!C21 -> A-5GB | D9: =AzureModeler!D21 -> 0 | E9: =AzureModeler!E21 -> 0 | F9: =AzureModeler!F21 -> 0 | G9: =AzureModeler!G21 -> First 5 GB Storage Free
D10: =SUM(D4:D9) -> 1 | F10: =SUM(F4:F9)*AzureRunHoursDiscount -> 133.92 | G10: ="Totals adjusted for " & DailyRunHours & " hours to run per day" -> Totals adjusted for 24 hours to run per day
B12: ="Dynamics " & BaseProduct & " License & Other Monthly Service Options:" -> Dynamics GP License & Other Monthly Service Options: | C12: =TEXT(SUM(AzureModeler!M18:M23),CurrencySymbol & "###0") -> $0 | G12: =AzureModeler!B3 -> Monthly Azure : $45 Non-Azure : $0
B13: Optional addin services per user per month | E13: Users | F13: Cost/Mth | G13: Description
B14: =AzureModeler!I18 -> RDS SPLA | E14: =AzureModeler!K18 -> 3 | F14: =AzureModeler!L18 -> 0 | G14: =AzureModeler!J18 -> Remote Desktop Services
B15: =AzureModeler!I19 -> ERP SPLA | E15: =AzureModeler!K19 -> 3 | F15: =AzureModeler!L19 -> 0 | G15: =AzureModeler!J19 -> Dynamics ERP SPLA License
B16: =AzureModeler!I20 -> Other | E16: =AzureModeler!K20 -> 3 | F16: =AzureModeler!L20 -> 0 | G16: =AzureModeler!J20 -> Partner added monthly services
B17: =AzureModeler!I21 -> O365 | E17: =AzureModeler!K21 -> 0 | F17: =AzureModeler!L21 -> 0 | G17: =AzureModeler!J21 -> Microsoft Office 365
B18: =AzureModeler!I22 -> CRMOL | E18: =AzureModeler!K22 -> 0 | F18: =AzureModeler!L22 -> 0 | G18: =AzureModeler!J22 -> Microsoft CRM Online
B19: =AzureModeler!I23 -> Upfront | E19: =AzureModeler!K23 -> 0 | F19: =AzureModeler!L23 -> 0 | G19: =AzureModeler!J23 -> Partner License & Implementation
B20: =AzureModeler!B24 -> 4 Year Cost Model on Azure - Year 1: $1,607 Year 2: $1,607 Year 3: $1,607 Year 4: $1,607 - Total 4 Year Investment: $6,429

Sheet Settings
A1: Settings for Azure Modeler | B1: Settings | C1: Selected ERP >>>> | D1: =BaseProduct -> GP | E1: Size | F1: Dynamics ERP Server Sizing Matrix Options | G1: User # Lower Limit | H1: Users # Upper Limit | I1: Separate SQL Server | P1: Formula Refresh
A2: Partner Name | B2: Contoso Solutions Inc. | C2: Yes | D2: GP-S | E2: Small | F2: VM-A2 | G2: 1 | H2: 3 | I2: No | N2: AUD | O2: $ | P2: =IFERROR(IF(VLOOKUP(AdjustedCALs,MachineIndex,3,TRUE)="Yes", VM, IF(TypeOfSQLLicense<>"VM-SQL",VM,SQLServerType &"-" & MID(D12,4,2))),"") | Q2: =IF(AzureSLA="Yes",2,1)
A3: Create Mail | B3: Yes | C3: No | D3: GP-M | E3: Medium | F3: VM-A3 | G3: 4 | H3: 7 | I3: Yes | N3: CAD | O3: $ | Q3: =IF(DomainController="No",0,IF(AzureSLA="Yes",2,1))
A4: Prospect Worksheet Range to Copy for Mail | B4: B2:G21 | D4: GP-L | E4: Large | F4: VM-A3 | G4: 8 | H4: 20 | I4: Yes | N4: Euro | O4: € | P4: =IFERROR(IF(VLOOKUP(AdjustedCALs,MachineIndex,3,TRUE)="Yes", IF(TypeOfSQLLicense="VM-SQL",SQLServerType & "-"& MID(VM,4,2),"VM-"&MID(VM,4,2)), IF(TypeOfSQLLicense<>"VM-SQL","VM-"&MID(VM,4,2),"VM-"&MID(VM,4,2))),"") | Q4: =IFERROR(IF(VLOOKUP(AdjustedCALs,MachineIndex,3,TRUE)="Yes",(IF(AzureSLA="Yes",2,1)),0),"")
A5: Print TCO Recap on mail | B5: Yes | D5: GP-XL | E5: XLarge | F5: VM-A5 | G5: 21 | H5: 40 | I5: Yes | N5: Pound | O5: £ | Q5: =IF(SRSServer="Yes",1,0)
A6: TCO Print Range | B6: A1:G42 | D6: SL-S | E6: Small | F6: VM-A2 | G6: 1 | H6: 9 | I6: No | N6: USD | O6: $ | P6: =IF(AND(DesktopCALs>RDSUserCount,RDServices="Yes"),ServerClass1Type,"") | Q6: =IF(AND(DesktopCALs>5,RDServices="Yes"),1,"")
A7: Print Topology on mail | B7: Yes | D7: SL-M | E7: Medium | F7: VM-A2 | G7: 6 | H7: 10 | I7: Yes | N7: ZAR | O7: R | Q7: =ERPUserCount
A8: Include Topology Range | B8: A1:K52 | D8: SL-L | E8: Large | F8: VM-A3 | G8: 11 | H8: 20 | I8: Yes | Q8: =ERPUserCount
A9: Print TCO Graphs on mail | B9: Yes | D9: SL-XL | E9: XLarge | F9: VM-A4 | G9: 21 | H9: 40 | I9: Yes
A10: TCO Graph Range | B10: A25:G47 | D10: NAV-S | E10: Small | F10: VM-A3 | G10: 1 | H10: 5 | I10: No
A11: Longterm & Workload Cost Range | B11: A42:G55 | D11: NAV-M | E11: Medium | F11: VM-A3 | G11: 6 | H11: 10 | I11: Yes
A12: Create PowerPoint Proposal | B12: No | D12: NAV-L | E12: Large | F12: VM-A3 | G12: 11 | H12: 20 | I12: Yes
A13: PowerPoint Proposal Intro Slide Number | B13: 2 | D13: NAV-XL | E13: XLarge | F13: VM-A4 | G13: 21 | H13: 40 | I13: Yes
A14: Add Content Links to Mail | B14: Yes | D14: AX-S | E14: Small | F14: VM-A3 | G14: 1 | H14: 5 | I14: Yes
A15: Template | B15: Azure-Modeler-template.oft | D15: AX-M | E15: Medium | F15: VM-A3 | G15: 6 | H15: 10 | I15: Yes
A16: Prompt for Template Export | B16: Yes | D16: AX-L | E16: Large | F16: VM-A4 | G16: 11 | H16: 20 | I16: Yes
A17: Prompt to Print Previous Model Details | B17: Yes | D17: AX-XL | E17: XLarge | F17: VM-A5 | G17: 21 | H17: 40 | I17: Yes
A18: Remote Desktop Server Count | B18: 9 | D18: CRM-S | E18: Small | F18: VM-A2 | G18: 1 | H18: 5 | I18: Yes
A19: SaaS Monthly Per User | B19: 300 | D19: CRM-M | E19: Medium | F19: VM-A3 | G19: 6 | H19: 10 | I19: Yes
A20: SaaS Compete Setup Cost | B20: 1000 | D20: CRM-L | E20: Large | F20: VM-A4 | G20: 11 | H20: 20 | I20: Yes
A21: SaaS Compete Implementation | B21: 5000 | D21: CRM-XL | E21: XLarge | F21: VM-A5 | G21: 21 | H21: 40 | I21: Yes
A22: Standard Dynamics ERP Implementation | B22: 5000
A23: Start up with Guide Me | B23: No | E23: ="Azure Server Mapping for Dynamics " & BaseProduct -> Azure Server Mapping for Dynamics GP
A24: Currency Symbol | B24: =VLOOKUP(Currency,N2:O10,2,TRUE) -> $ | E24: =INDEX($E$2:$I$21,MATCH((D1&"-S"),$D$2:$D$21,0),1) -> Small | F24: =INDEX($E$2:$I$21,MATCH(($D$1&"-S"),$D$2:$D$21,0),2) -> VM-A2 | G24: =INDEX($E$2:$I$21,MATCH(($D$1&"-S"),$D$2:$D$21,0),3) -> 1 | H24: =INDEX($E$2:$I$21,MATCH(($D$1&"-S"),$D$2:$D$21,0),4) -> 3 | I24: =INDEX($E$2:$I$21,MATCH(($D$1&"-S"),$D$2:$D$21,0),5) -> No
E25: =INDEX($E$2:$I$21,MATCH((D1&"-M"),$D$2:$D$21,0),1) -> Medium | F25: =INDEX($E$2:$I$21,MATCH(($D$1&"-M"),$D$2:$D$21,0),2) -> VM-A3 | G25: =INDEX($E$2:$I$21,MATCH(($D$1&"-M"),$D$2:$D$21,0),3) -> 4 | H25: =INDEX($E$2:$I$21,MATCH(($D$1&"-M"),$D$2:$D$21,0),4) -> 7 | I25: =INDEX($E$2:$I$21,MATCH(($D$1&"-M"),$D$2:$D$21,0),5) -> Yes
A26: AzurePriceUpdateSheet | B26: https://dl-web.dropbox.com/s/85g4yax628kmzvf/rateschduleimport.xlsx?dl=1 | E26: =INDEX($E$2:$I$21,MATCH((D1&"-L"),$D$2:$D$21,0),1) -> Large | F26: =INDEX($E$2:$I$21,MATCH(($D$1&"-L"),$D$2:$D$21,0),2) -> VM-A3 | G26: =INDEX($E$2:$I$21,MATCH(($D$1&"-L"),$D$2:$D$21,0),3) -> 8 | H26: =INDEX($E$2:$I$21,MATCH(($D$1&"-L"),$D$2:$D$21,0),4) -> 20 | I26: =INDEX($E$2:$I$21,MATCH(($D$1&"-L"),$D$2:$D$21,0),5) -> Yes
A27: Last Azure Update Date | B27: 2015-02-12T14:47:21 | E27: =INDEX($E$2:$I$21,MATCH((D1&"-XL"),$D$2:$D$21,0),1) -> XLarge | F27: =INDEX($E$2:$I$21,MATCH(($D$1&"-XL"),$D$2:$D$21,0),2) -> VM-A5 | G27: =INDEX($E$2:$I$21,MATCH(($D$1&"-XL"),$D$2:$D$21,0),3) -> 21 | H27: =INDEX($E$2:$I$21,MATCH(($D$1&"-XL"),$D$2:$D$21,0),4) -> 40 | I27: =INDEX($E$2:$I$21,MATCH(($D$1&"-XL"),$D$2:$D$21,0),5) -> Yes
A28: Azure Resources Update Sheet | B28: https://dl.dropbox.com/s/7tu0r66oce77nd9/AzureResources.xlsx?dl=1
A29: Last Azure Resources Update Date | B29: 2015-02-14T12:44:05
A32: Base Prosposal Name
A33: Local OneDrive Synch File Location
A38: Cloud Survey Questions:
A39: Understand existing on premise and cloud topology by workloads. Beginning with ERP/CRM.
A40: Determine knowledge/experience of cloud today at both IT and Business level
A41: What are the key business drives in the next two years
A42: Determine what is driving interest in the cloud today
A43: What is the level of interest in cloud from the IT organization today. Are there any Cloud iniatives today
A44: what length of time are the seeking for having the solution hosted?
A45: What ERP system are the using today and for how long?
A46: Do they use a CRM system today?
A47: Are there any upcoming key events or projects in the next 12-24 months?
A48: Do they have any hardware upgrades/replacement in the next 12-24 months?
A49: What other technology platforms are in use on premise today?
A50: Do they want to co-manage their cloud solutions/
A51: What version of Office/Productivity apps do their users use today?
A52: Would they consider putting desktop productivity (MS Office license) into a monthly price for all users?
A53: What are their ERP operational hours?
A54: Do they need failover/redundancy? Do they need to meet a SLA?
A55: Who is be involved in the decision to move to the cloud?
A58: Cloud Positioning
A59: Position Microsoft Cloud options and strengths during the discussion:
A60: End to End cloud solutions of Microsoft - highlight limited scope of point solution SaaS solutions
A61: Deep long term experience with the cloud and with ERP
A62: Hybrid cloud strengths and staged migration
A63: Existing knowledge of Microsoft platform scales in the Microsoft cloud
A64: Don’t lead with individual products lead with the Cloud platform and leverage the breadth thru the workloads we can move the cloud.
A65: Long term TCO investment of balancing licensing options with Dynamics ERP and CRM ( Buy vs Lease) the business applications license
A66: Leverage case studies of customer success with Office 365, CRM OnLine and Dynamics Cloud stories
A67: Model TCO (with Azure Modeler for Business Workloads ) options with the customer and point to flexibility and breadth of solutions
A68: Don’t sell. Be consultative and adaptable to right size the Microsoft Cloud options.
A69: safd asf asfasfasfdasf

Sheet AzurePricing
A1: Machine | B1: ="Azure Resource List as of " & TEXT(AzureResourceUpdateDate,"mm/dd/yyyy HH:MM AM/PM") -> Azure Resource List as of 02/12/2015 02:47 PM | C1: USD | E1: CAD | G1: Pound | I1: Euro | K1: AUD | M1: ZAR
A2: Options | C2: Basic Tier | D2: Standard Tier | E2: Basic Tier | F2: Standard Tier | G2: Basic Tier | H2: Standard Tier | I2: Basic Tier | J2: Standard Tier | K2: Basic Tier | L2: Standard Tier | M2: Basic Tier | N2: Standard Tier
A3: VM-A0 | B3: A0 Extra Small (1 core, 0.75GB RAM) | C3: 0.018 | D3: 0.02 | E3: 0.018981 | F3: 0.02109 | G3: 0.0109962 | H3: 0.012218 | I3: 0.0134046 | J3: 0.014894 | K3: 0.0181638 | L3: 0.020182 | M3: 0.2052 | N3: 0.228 | AA3: USD
A4: VM-A1 | B4: A1 Small (1 core, 1.75GB RAM) | C4: 0.0755 | D4: 0.09 | E4: 0.07961475 | F4: 0.094905 | G4: 0.04612295 | H4: 0.054981 | I4: 0.05622485 | J4: 0.067023 | K4: 0.07618705 | L4: 0.090819 | M4: 0.9234 | N4: 1.026 | AA4: CAD
A5: VM-A2 | B5: A2 Medium (2 cores, 3.5GB RAM) | C5: 0.151 | D5: 0.18 | E5: 0.1592295 | F5: 0.18981 | G5: 0.0922459 | H5: 0.109962 | I5: 0.1124497 | J5: 0.134046 | K5: 0.1523741 | L5: 0.181638 | M5: 1.8468 | N5: 2.052 | AA5: Pound
A6: VM-A3 | B6: A3 Large (4 cores, 7GB RAM) | C6: 0.302 | D6: 0.36 | E6: 0.318459 | F6: 0.37962 | G6: 0.1844918 | H6: 0.219924 | I6: 0.2248994 | J6: 0.268092 | K6: 0.3047482 | L6: 0.363276 | M6: 3.6936 | N6: 4.104 | AA6: Euro
A7: VM-A4 | B7: A4 Extra Large (8 cores, 14GB RAM) | C7: 0.604 | D7: 0.72 | E7: 0.636918 | F7: 0.75924 | G7: 0.3689836 | H7: 0.439848 | I7: 0.4497988 | J7: 0.536184 | K7: 0.6094964 | L7: 0.726552 | M7: 7.3872 | N7: 8.208 | AA7: AUD
A8: VM-A5 | B8: A5 (2 cores, 14GB RAM) | C8: 0.0001 | D8: 0.32 | E8: 0.00010545 | F8: 0.33744 | G8: 0.0001 | H8: 0.195488 | I8: 0.0001 | J8: 0.238304 | K8: 0.0001 | L8: 0.322912 | M8: 0.0001 | N8: 3.876 | AA8: ZAR
A9: VM-A6 | B9: A6 (4 cores, 28GB RAM) | C9: 0.0001 | D9: 0.64 | E9: 0.00010545 | F9: 0.67488 | G9: 0.0001 | H9: 0.390976 | I9: 0.0001 | J9: 0.476608 | K9: 0.0001 | L9: 0.645824 | M9: 0.0001 | N9: 7.752
A10: VM-A7 | B10: A7 (8 cores, 56GB RAM) | C10: 0.0001 | D10: 1.28 | E10: 0.00010545 | F10: 1.34976 | G10: 0.0001 | H10: 0.781952 | I10: 0.0001 | J10: 0.953216 | K10: 0.0001 | L10: 1.291648 | M10: 0.0001 | N10: 15.504
A11: VM-A8 | B11: A8 (8 cores, 56GB RAM) | C11: 0.0001 | D11: 2.45 | E11: 0.00010545 | F11: 2.583525 | G11: 0.0001 | H11: 1.496705 | I11: 0.0001 | J11: 1.824515 | K11: 0.0001 | L11: 2.472295 | M11: 0.0001 | N11: 27.93
A12: VM-A9 | B12: A9 (16 cores, 112GB RAM) | C12: 0.0001 | D12: 4.9 | E12: 0.00010545 | F12: 5.16705 | G12: 0.0001 | H12: 2.99341 | I12: 0.0001 | J12: 3.64903 | K12: 0.0001 | L12: 4.94459 | M12: 0.0001 | N12: 55.86
A13: VM-D1 | B13: D1 (1 core, 3.5GB RAM) | C13: 0.1366666667 | D13: 0.167 | E13: 0.144115 | F13: 0.1761015 | G13: 0.08348966667 | H13: 0.1020203 | I13: 0.1017756667 | J13: 0.1243649 | K13: 0.1379103333 | L13: 0.1685197 | M13: 1.71 | N13: 2.0862
A14: VM-D2 | B14: D2 (2 cores, 7GB RAM) | C14: 0.2733333333 | D14: 0.334 | E14: 0.28823 | F14: 0.352203 | G14: 0.1669793333 | H14: 0.2040406 | I14: 0.2035513333 | J14: 0.2487298 | K14: 0.2758206667 | L14: 0.3370394 | M14: 3.42 | N14: 4.1724
A15: VM-D3 | B15: D3 (4 cores, 14GB RAM) | C15: 0.5466666667 | D15: 0.668 | E15: 0.57646 | F15: 0.704406 | G15: 0.3339586667 | H15: 0.4080812 | I15: 0.4071026667 | J15: 0.4974596 | K15: 0.5516413333 | L15: 0.6740788 | M15: 6.84 | N15: 8.3448
A16: VM-D4 | B16: D4 (8 cores, 28GB RAM) | C16: 1.093333333 | D16: 1.336 | E16: 1.15292 | F16: 1.408812 | G16: 0.6679173333 | H16: 0.8161624 | I16: 0.8142053333 | J16: 0.9949192 | K16: 1.103282667 | L16: 1.3481576 | M16: 13.68 | N16: 16.6896
A17: VM-D11 | B17: D11 (2 cores, 14GB RAM) | C17: 0.32 | D17: 0.3906666667 | E17: 0.33744 | F17: 0.411958 | G17: 0.195488 | H17: 0.2386582667 | I17: 0.238304 | J17: 0.2909294667 | K17: 0.322912 | L17: 0.3942217333 | M17: 27.36 | N17: 4.7994
A18: VM-D12 | B18: D12 (4 cores, 28GB RAM) | C18: 0.64 | D18: 0.7813333333 | E18: 0.67488 | F18: 0.823916 | G18: 0.390976 | H18: 0.4773165333 | I18: 0.476608 | J18: 0.5818589333 | K18: 0.645824 | L18: 0.7884434667 | M18: 7.866 | N18: 9.5988
A19: VM-D13 | B19: D13 (8 cores, 56GB RAM) | C19: 1.152 | D19: 1.406666667 | E19: 1.214784 | F19: 1.48333 | G19: 0.7037568 | H19: 0.8593326667 | I19: 0.8578944 | J19: 1.047544667 | K19: 1.1624832 | L19: 1.419467333 | M19: 14.1588 | N19: 17.2824
A20: VM-D14 | B20: D14 (16 cores, 112GB RAM) | C20: 2.073333333 | D20: 2.531333333 | E20: 2.18633 | F20: 2.669291 | G20: 1.266599333 | H20: 1.546391533 | I20: 1.544011333 | J20: 1.885083933 | K20: 2.092200667 | L20: 2.554368467 | M20: 25.4904 | N20: 31.0992
A21: SE-A0 | B21: A0 Extra Small (1 core, 0.75GB RAM) | C21: 1.518 | D21: 1.52 | E21: 1.600731 | F21: 1.60284 | G21: 0.9273462 | H21: 0.928568 | I21: 1.1304546 | J21: 1.131944 | K21: 1.5318138 | L21: 1.533832 | M21: 17.3052 | N21: 17.328
A22: SE-A1 | B22: A1 Small (1 core, 1.75GB RAM) | C22: 1.5755 | D22: 1.59 | E22: 1.66136475 | F22: 1.676655 | G22: 0.96247295 | H22: 0.971331 | I22: 1.17327485 | J22: 1.184073 | K22: 1.58983705 | L22: 1.604469 | M22: 18.0234 | N22: 18.126
A23: SE-A2 | B23: A2 Medium (2 cores, 3.5GB RAM) | C23: 1.651 | D23: 1.68 | E23: 1.7409795 | F23: 1.77156 | G23: 1.0085959 | H23: 1.026312 | I23: 1.2294997 | J23: 1.251096 | K23: 1.6660241 | L23: 1.695288 | M23: 18.9468 | N23: 19.152
A24: SE-A3 | B24: A3 Large (4 cores, 7GB RAM) | C24: 1.802 | D24: 1.86 | E24: 1.900209 | F24: 1.96137 | G24: 1.1008418 | H24: 1.136274 | I24: 1.3419494 | J24: 1.385142 | K24: 1.8183982 | L24: 1.876926 | M24: 20.7936 | N24: 21.204
A25: SE-A4 | B25: A4 Extra Large (8 cores, 14GB RAM) | C25: 3.604 | D25: 3.72 | E25: 3.800418 | F25: 3.92274 | G25: 2.2016836 | H25: 2.272548 | I25: 2.6838988 | J25: 2.770284 | K25: 3.6367964 | L25: 3.753852 | M25: 41.5872 | N25: 42.408
A26: SE-A5 | B26: A5 (2 cores, 14GB RAM) | C26: 0.0001 | D26: 1.82 | E26: 0.0001 | F26: 1.91919 | G26: 0.0001 | H26: 1.111838 | I26: 0.0001 | J26: 1.355354 | K26: 0.0001 | L26: 1.836562 | M26: 0.0001 | N26: 20.976
A27: SE-A6 | B27: A6 (4 cores, 28GB RAM) | C27: 0.0001 | D27: 2.14 | E27: 0.0001 | F27: 2.25663 | G27: 0.0001 | H27: 1.307326 | I27: 0.0001 | J27: 1.593658 | K27: 0.0001 | L27: 2.159474 | M27: 0.0001 | N27: 24.852
A28: SE-A7 | B28: A7 (8 cores, 56GB RAM) | C28: 0.0001 | D28: 4.28 | E28: 0.0001 | F28: 4.51326 | G28: 0.0001 | H28: 2.614652 | I28: 0.0001 | J28: 3.187316 | K28: 0.0001 | L28: 4.318948 | M28: 0.0001 | N28: 49.704
A29: SE-A8 | B29: A8 (8 cores, 56GB RAM) | C29: 0.0001 | D29: 5.45 | E29: 0.0001 | F29: 5.747025 | G29: 0.0001 | H29: 3.329405 | I29: 0.0001 | J29: 4.058615 | K29: 0.0001 | L29: 5.499595 | M29: 0.0001 | N29: 62.13
A30: SE-A9 | B30: A9 (16 cores, 112GB RAM) | C30: 0.0001 | D30: 10.9 | E30: 0.0001 | F30: 11.49405 | G30: 0.0001 | H30: 6.65881 | I30: 0.0001 | J30: 8.11723 | K30: 0.0001 | L30: 10.99919 | M30: 0.0001 | N30: 124.26
A31: SE-D1 | B31: D1 (1 core, 3.5GB RAM) | C31: 1.636666667 | D31: 1.667 | E31: 1.725865 | F31: 1.7578515 | G31: 0.9998396667 | H31: 1.0183703 | I31: 1.218825667 | J31: 1.2414149 | K31: 1.651560333 | L31: 1.6821697 | M31: 18.81 | N31: 19.1862
A32: SE-D2 | B32: D2 (2 cores, 7GB RAM) | C32: 1.773333333 | D32: 1.834 | E32: 1.86998 | F32: 1.933953 | G32: 1.083329333 | H32: 1.1203906 | I32: 1.320601333 | J32: 1.3657798 | K32: 1.789470667 | L32: 1.8506894 | M32: 20.52 | N32: 21.2724
A33: SE-D3 | B33: D3 (4 cores, 14GB RAM) | C33: 2.046666667 | D33: 2.168 | E33: 2.15821 | F33: 2.286156 | G33: 1.250308667 | H33: 1.3244312 | I33: 1.524152667 | J33: 1.6145096 | K33: 2.065291333 | L33: 2.1877288 | M33: 23.94 | N33: 25.4448
A34: SE-D4 | B34: D4 (8 cores, 28GB RAM) | C34: 4.093333333 | D34: 4.336 | E34: 4.31642 | F34: 4.572312 | G34: 2.500617333 | H34: 2.6488624 | I34: 3.048305333 | J34: 3.2290192 | K34: 4.130582667 | L34: 4.3754576 | M34: 47.88 | N34: 50.8896
A35: SE-D11 | B35: D11 (2 cores, 14GB RAM) | C35: 1.82 | D35: 1.890666667 | E35: 1.91919 | F35: 1.993708 | G35: 1.111838 | H35: 1.155008267 | I35: 1.355354 | J35: 1.407979467 | K35: 1.836562 | L35: 1.907871733 | M35: 44.46 | N35: 21.8994
A36: SE-D12 | B36: D12 (4 cores, 28GB RAM) | C36: 2.14 | D36: 2.281333333 | E36: 2.25663 | F36: 2.405666 | G36: 1.307326 | H36: 1.393666533 | I36: 1.593658 | J36: 1.698908933 | K36: 2.159474 | L36: 2.302093467 | M36: 24.966 | N36: 26.6988
A37: SE-D13 | B37: D13 (8 cores, 56GB RAM) | C37: 4.152 | D37: 4.406666667 | E37: 4.378284 | F37: 4.64683 | G37: 2.5364568 | H37: 2.692032667 | I37: 3.0919944 | J37: 3.281644667 | K37: 4.1897832 | L37: 4.446767333 | M37: 48.3588 | N37: 51.4824
A38: SE-D14 | B38: D14 (16 cores, 112GB RAM) | C38: 0.0001 | D38: 8.531333333 | E38: 0.0001 | F38: 8.996291 | G38: 0.0001 | H38: 5.211791533 | I38: 0.0001 | J38: 6.353283933 | K38: 0.0001 | L38: 8.608968467 | M38: 0 | N38: 99.4992
A39: SS-A0 | B39: A0 Extra Small (1 core, 0.75GB RAM) | C39: 0.418 | D39: 0.42 | E39: 0.440781 | F39: 0.44289 | G39: 0.2553562 | H39: 0.256578 | I39: 0.3112846 | J39: 0.312774 | K39: 0.4218038 | L39: 0.423822 | M39: 4.7652 | N39: 4.788
A40: SS-A1 | B40: A1 Small (1 core, 1.75GB RAM) | C40: 0.4755 | D40: 0.49 | E40: 0.50141475 | F40: 0.516705 | G40: 0.29048295 | H40: 0.299341 | I40: 0.35410485 | J40: 0.364903 | K40: 0.47982705 | L40: 0.494459 | M40: 5.4834 | N40: 5.586
A41: SS-A2 | B41: A2 Medium (2 cores, 3.5GB RAM) | C41: 0.551 | D41: 0.58 | E41: 0.5810295 | F41: 0.61161 | G41: 0.3366059 | H41: 0.354322 | I41: 0.4103297 | J41: 0.431926 | K41: 0.5560141 | L41: 0.585278 | M41: 6.4068 | N41: 6.612
A42: SS-A3 | B42: A3 Large (4 cores, 7GB RAM) | C42: 0.702 | D42: 0.76 | E42: 0.740259 | F42: 0.80142 | G42: 0.4288518 | H42: 0.464284 | I42: 0.5227794 | J42: 0.565972 | K42: 0.7083882 | L42: 0.766916 | M42: 8.2536 | N42: 8.664
A43: SS-A4 | B43: A4 Extra Large (8 cores, 14GB RAM) | C43: 1.404 | D43: 1.52 | E43: 1.480518 | F43: 1.60284 | G43: 0.8577036 | H43: 0.928568 | I43: 1.0455588 | J43: 1.131944 | K43: 1.4167764 | L43: 1.533832 | M43: 16.5072 | N43: 17.328
A44: SS-A5 | B44: A5 (2 cores, 14GB RAM) | C44: 0.0001 | D44: 0.72 | E44: 0.0001 | F44: 0.75924 | G44: 0.0001 | H44: 0.439848 | I44: 0.0001 | J44: 0.536184 | K44: 0.0001 | L44: 0.726552 | M44: 0.0001 | N44: 8.436
A45: SS-A6 | B45: A6 (4 cores, 28GB RAM) | C45: 0.0001 | D45: 1.68 | E45: 0.0001 | F45: 1.77156 | G45: 0.0001 | H45: 1.026312 | I45: 0.0001 | J45: 1.251096 | K45: 0.0001 | L45: 1.695288 | M45: 0.0001 | N45: 20.064
A46: SS-A7 | B46: A7 (8 cores, 56GB RAM) | C46: 0.0001 | D46: 2.08 | E46: 0.0001 | F46: 2.19336 | G46: 0.0001 | H46: 1.270672 | I46: 0.0001 | J46: 1.548976 | K46: 0.0001 | L46: 2.098928 | M46: 0.0001 | N46: 24.624
A47: SS-A8 | B47: A8 (8 cores, 56GB RAM) | C47: 0.0001 | D47: 3.25 | E47: 0.0001 | F47: 3.427125 | G47: 0.0001 | H47: 1.985425 | I47: 0.0001 | J47: 2.420275 | K47: 0.0001 | L47: 3.279575 | M47: 0.0001 | N47: 37.05
A48: SS-A9 | B48: A9 (16 cores, 112GB RAM) | C48: 0.0001 | D48: 6.5 | E48: 0.0001 | F48: 6.85425 | G48: 0.0001 | H48: 3.97085 | I48: 0.0001 | J48: 4.84055 | K48: 0.0001 | L48: 6.55915 | M48: 0.0001 | N48: 74.1
A49: SS-D1 | B49: D1 (1 core, 3.5GB RAM) | C49: 0.5366666667 | D49: 0.567 | E49: 0.565915 | F49: 0.5979015 | G49: 0.3278496667 | H49: 0.3463803 | I49: 0.3996556667 | J49: 0.4222449 | K49: 0.5415503333 | L49: 0.5721597 | M49: 6.27 | N49: 6.6462
A50: SS-D2 | B50: D2 (2 cores, 7GB RAM) | C50: 0.6733333333 | D50: 0.734 | E50: 0.71003 | F50: 0.774003 | G50: 0.4113393333 | H50: 0.4484006 | I50: 0.5014313333 | J50: 0.5466098 | K50: 0.6794606667 | L50: 0.7406794 | M50: 7.98 | N50: 8.7324
A51: SS-D3 | B51: D3 (4 cores, 14GB RAM) | C51: 0.9466666667 | D51: 1.068 | E51: 0.99826 | F51: 1.126206 | G51: 0.5783186667 | H51: 0.6524412 | I51: 0.7049826667 | J51: 0.7953396 | K51: 0.9552813333 | L51: 1.0777188 | M51: 11.4 | N51: 12.9048
A52: SS-D4 | B52: D4 (8 cores, 28GB RAM) | C52: 1.893333333 | D52: 2.136 | E52: 1.99652 | F52: 2.252412 | G52: 1.156637333 | H52: 1.3048824 | I52: 1.409965333 | J52: 1.5906792 | K52: 1.910562667 | L52: 2.1554376 | M52: 22.8 | N52: 25.8096
A53: SS-D11 | B53: D11 (2 cores, 14GB RAM) | C53: 0.72 | D53: 0.7906666667 | E53: 0.75924 | F53: 0.833758 | G53: 0.439848 | H53: 0.4830182667 | I53: 0.536184 | J53: 0.5888094667 | K53: 0.726552 | L53: 0.7978617333 | M53: 31.92 | N53: 9.3594
A54: SS-D12 | B54: D12 (4 cores, 28GB RAM) | C54: 1.04 | D54: 1.181333333 | E54: 1.09668 | F54: 1.245716 | G54: 0.635336 | H54: 0.7216765333 | I54: 0.774488 | J54: 0.8797389333 | K54: 1.049464 | L54: 1.192083467 | M54: 12.426 | N54: 14.1588
A55: SS-D13 | B55: D13 (8 cores, 56GB RAM) | C55: 1.552 | D55: 2.206666667 | E55: 1.636584 | F55: 2.32693 | G55: 0.9481168 | H55: 1.348052667 | I55: 1.1557744 | J55: 1.643304667 | K55: 1.5661232 | L55: 2.226747333 | M55: 23.2788 | N55: 26.4024
A56: SS-D14 | B56: D14 (16 cores, 112GB RAM) | C56: 0.0001 | D56: 4.131333333 | E56: 0.0001 | F56: 4.356491 | G56: 0.0001 | H56: 2.523831533 | I56: 0.0001 | J56: 3.076603933 | K56: 0.0001 | L56: 4.168928467 | M56: 0.0001 | N56: 49.3392
A57: SW-A0 | B57: A0 Extra Small (1 core, 0.75GB RAM) | C57: 0.05 | D57: 0.052 | E57: 0.052725 | F57: 0.054834 | G57: 0.030545 | H57: 0.0317668 | I57: 0.037235 | J57: 0.0387244 | K57: 0.050455 | L57: 0.0524732 | M57: 0.57 | N57: 0.5928
A58: SW-A1 | B58: A1 Small (1 core, 1.75GB RAM) | C58: 0.1075 | D58: 0.122 | E58: 0.11335875 | F58: 0.128649 | G58: 0.06567175 | H58: 0.0745298 | I58: 0.08005525 | J58: 0.0908534 | K58: 0.10847825 | L58: 0.1231102 | M58: 5.4834 | N58: 1.3908
A59: SW-A2 | B59: A2 Medium (2 cores, 3.5GB RAM) | C59: 0.183 | D59: 0.212 | E59: 0.1929735 | F59: 0.223554 | G59: 0.1117947 | H59: 0.1295108 | I59: 0.1362801 | J59: 0.1578764 | K59: 0.1846653 | L59: 0.2139292 | M59: 6.4068 | N59: 2.4168
A60: SW-A3 | B60: A3 Large (4 cores, 7GB RAM) | C60: 0.334 | D60: 0.392 | E60: 0.352203 | F60: 0.413364 | G60: 0.2040406 | H60: 0.2394728 | I60: 0.2487298 | J60: 0.2919224 | K60: 0.3370394 | L60: 0.3955672 | M60: 8.2536 | N60: 4.4688
A61: SW-A4 | B61: A4 Extra Large (8 cores, 14GB RAM) | C61: 0.668 | D61: 0.784 | E61: 0.704406 | F61: 0.826728 | G61: 0.4080812 | H61: 0.4789456 | I61: 0.4974596 | J61: 0.5838448 | K61: 0.6740788 | L61: 0.7911344 | M61: 16.5072 | N61: 8.9376
A62: SW-A5 | B62: A5 (2 cores, 14GB RAM) | C62: 0.0001 | D62: 0.352 | E62: 0.0001 | F62: 0.371184 | G62: 0.0001 | H62: 0.2150368 | I62: 0.0001 | J62: 0.2621344 | K62: 0.0001 | L62: 0.3552032 | M62: 0.0001 | N62: 4.2408
A63: SW-A6 | B63: A6 (4 cores, 28GB RAM) | C63: 0.0001 | D63: 0.672 | E63: 0.0001 | F63: 0.708624 | G63: 0.0001 | H63: 0.4105248 | I63: 0.0001 | J63: 0.5004384 | K63: 0.0001 | L63: 0.6781152 | M63: 0.0001 | N63: 8.1168
A64: SW-A7 | B64: A7 (8 cores, 56GB RAM) | C64: 0.0001 | D64: 1.344 | E64: 0.0001 | F64: 1.417248 | G64: 0.0001 | H64: 0.8210496 | I64: 0.0001 | J64: 1.0008768 | K64: 0.0001 | L64: 1.3562304 | M64: 0.0001 | N64: 16.2336
A65: SW-A8 | B65: A8 (8 cores, 56GB RAM) | C65: 0.0001 | D65: 2.514 | E65: 0.0001 | F65: 2.651013 | G65: 0.0001 | H65: 1.5358026 | I65: 0.0001 | J65: 1.8721758 | K65: 0.0001 | L65: 2.5368774 | M65: 0.0001 | N65: 28.6596
A66: SW-A9 | B66: A9 (16 cores, 112GB RAM) | C66: 0.0001 | D66: 5.028 | E66: 0.0001 | F66: 5.302026 | G66: 0.0001 | H66: 3.0716052 | I66: 0.0001 | J66: 3.7443516 | K66: 0.0001 | L66: 5.0737548 | M66: 0.0001 | N66: 57.3192
A67: SW-D1 | B67: D1 (1 core, 3.5GB RAM) | C67: 0.1686666667 | D67: 0.199 | E67: 0.177859 | F67: 0.2098455 | G67: 0.1030384667 | H67: 0.1215691 | I67: 0.1256060667 | J67: 0.1481953 | K67: 0.1702015333 | L67: 0.2008109 | M67: 1.742 | N67: 2.451
A68: SW-D2 | B68: D2 (2 cores, 7GB RAM) | C68: 0.3053333333 | D68: 0.366 | E68: 0.321974 | F68: 0.385947 | G68: 0.1865281333 | H68: 0.2235894 | I68: 0.2273817333 | J68: 0.2725602 | K68: 0.3081118667 | L68: 0.3693306 | M68: 3.452 | N68: 4.5372
A69: SW-D3 | B69: D3 (4 cores, 14GB RAM) | C69: 0.5786666667 | D69: 0.7 | E69: 0.610204 | F69: 0.73815 | G69: 0.3535074667 | H69: 0.42763 | I69: 0.4309330667 | J69: 0.52129 | K69: 0.5839325333 | L69: 0.70637 | M69: 6.872 | N69: 8.7096
A70: SW-D4 | B70: D4 (8 cores, 28GB RAM) | C70: 1.157333333 | D70: 1.4 | E70: 1.220408 | F70: 1.4763 | G70: 0.7070149333 | H70: 0.85526 | I70: 0.8618661333 | J70: 1.04258 | K70: 1.167865067 | L70: 1.41274 | M70: 13.744 | N70: 17.4192
A71: SW-D11 | B71: D11 (2 cores, 14GB RAM) | C71: 0.352 | D71: 0.4226666667 | E71: 0.371184 | F71: 0.445702 | G71: 0.2150368 | H71: 0.2582070667 | I71: 0.2621344 | J71: 0.3147598667 | K71: 0.3552032 | L71: 0.4265129333 | M71: 27.392 | N71: 5.1642
A72: SW-D12 | B72: D12 (4 cores, 28GB RAM) | C72: 0.672 | D72: 0.8133333333 | E72: 0.708624 | F72: 0.85766 | G72: 0.4105248 | H72: 0.4968653333 | I72: 0.5004384 | J72: 0.6056893333 | K72: 0.6781152 | L72: 0.8207346667 | M72: 7.898 | N72: 9.9636
A73: SW-D13 | B73: D13 (8 cores, 56GB RAM) | C73: 1.216 | D73: 1.470666667 | E73: 1.282272 | F73: 1.550818 | G73: 0.7428544 | H73: 0.8984302667 | I73: 0.9055552 | J73: 1.095205467 | K73: 1.2270656 | L73: 1.484049733 | M73: 14.2228 | N73: 18.012
A74: SW-D14 | B74: D14 (16 cores, 112GB RAM) | C74: 0.0001 | D74: 2.659333333 | E74: 0.0001 | F74: 2.804267 | G74: 0.0001 | H74: 1.624586733 | I74: 0.0001 | J74: 1.980405533 | K74: 0.0001 | L74: 2.683533267 | M74: 0.0001 | N74: 32.5584
B88: Bandwidth
A89: BW10 | B89: Bandwidth 10GB | C89: 0.019 | D89: 0.019 | E89: 0.019 | F89: 0.019
A90: BW20 | B90: Bandwidth 20GB | C90: 0.019 | D90: 0.019 | E90: 0.019 | F90: 0.019 | G90: 5 GB
B92: Disk Storage
A93: B-50GB | B93: Page Blobs & Disks 50 GB | C93: 50 | D93: 2.5 | G93: 50 GB
A94: C-100GB | B94: Page Blobs & Disks 100 GB | C94: 100 | D94: 5 | G94: 100 GB
A95: D-500GB | B95: Page Blobs & Disks 500 GB | C95: 500 | D95: 25 | G95: 500 GB
A96: E-1TB | B96: Page Blobs & Disks 1 TB | C96: 1000 | D96: 50 | G96: 1000 GB
B98: Alternate Lookup All VMs
A99: VM-A0 | B99: A0 Extra Small (1 core, 0.75GB RAM)
A100: VM-A1 | B100: A1 Small (1 core, 1.75GB RAM)
A101: VM-A2 | B101: A2 Medium (2 cores, 3.5GB RAM)
A102: VM-A3 | B102: A3 Large (4 cores, 7GB RAM)
A103: VM-A4 | B103: A4 Extra Large (8 cores, 14GB RAM)
A104: VM-A5 | B104: A5 (2 cores, 14GB RAM)
A105: VM-A6 | B105: A6 (4 cores, 28GB RAM)
A106: VM-A7 | B106: A7 (8 cores, 56GB RAM)
A107: VM-A8 | B107: A8 (8 cores, 56GB RAM)
A108: VM-A9 | B108: A9 (16 cores, 112GB RAM)
A109: VM-D1 | B109: D1 (1 core, 3.5GB RAM)
A110: VM-D11 | B110: D11 (2 cores, 14GB RAM)
A111: VM-D12 | B111: D12 (4 cores, 28GB RAM)
A112: VM-D13 | B112: D13 (8 cores, 56GB RAM)
A113: VM-D14 | B113: D14 (16 cores, 112GB RAM)
A114: VM-D2 | B114: D2 (2 cores, 7GB RAM)
A115: VM-D3 | B115: D3 (4 cores, 14GB RAM)
A116: VM-D4 | B116: D4 (8 cores, 28GB RAM)
A117: SE-A0 | B117: A0 Extra Small (1 core, 0.75GB RAM)
A118: SE-A1 | B118: A1 Small (1 core, 1.75GB RAM)
A119: SE-A2 | B119: A2 Medium (2 cores, 3.5GB RAM)
A120: SE-A3 | B120: A3 Large (4 cores, 7GB RAM)
A121: SE-A4 | B121: A4 Extra Large (8 cores, 14GB RAM)
A122: SE-A5 | B122: A5 (2 cores, 14GB RAM)
A123: SE-A6 | B123: A6 (4 cores, 28GB RAM)
A124: SE-A7 | B124: A7 (8 cores, 56GB RAM)
A125: SE-A8 | B125: A8 (8 cores, 56GB RAM)
A126: SE-A9 | B126: A9 (16 cores, 112GB RAM)
A127: SE-D1 | B127: D1 (1 core, 3.5GB RAM)
A128: SE-D11 | B128: D11 (2 cores, 14GB RAM)
A129: SE-D12 | B129: D12 (4 cores, 28GB RAM)
A130: SE-D13 | B130: D13 (8 cores, 56GB RAM)
A131: SE-D14 | B131: D14 (16 cores, 112GB RAM)
A132: SE-D2 | B132: D2 (2 cores, 7GB RAM)
A133: SE-D3 | B133: D3 (4 cores, 14GB RAM)
A134: SE-D4 | B134: D4 (8 cores, 28GB RAM)
A135: SS-A0 | B135: A0 Extra Small (1 core, 0.75GB RAM)
A136: SS-A1 | B136: A1 Small (1 core, 1.75GB RAM)
A137: SS-A2 | B137: A2 Medium (2 cores, 3.5GB RAM)
A138: SS-A3 | B138: A3 Large (4 cores, 7GB RAM)
A139: SS-A4 | B139: A4 Extra Large (8 cores, 14GB RAM)
A140: SS-A5 | B140: A5 (2 cores, 14GB RAM)
A141: SS-A6 | B141: A6 (4 cores, 28GB RAM)
A142: SS-A7 | B142: A7 (8 cores, 56GB RAM)
A143: SS-A8 | B143: A8 (8 cores, 56GB RAM)
A144: SS-A9 | B144: A9 (16 cores, 112GB RAM)
A145: SS-D1 | B145: D1 (1 core, 3.5GB RAM)
A146: SS-D11 | B146: D11 (2 cores, 14GB RAM)
A147: SS-D12 | B147: D12 (4 cores, 28GB RAM)
A148: SS-D13 | B148: D13 (8 cores, 56GB RAM)
A149: SS-D14 | B149: D14 (16 cores, 112GB RAM)
A150: SS-D2 | B150: D2 (2 cores, 7GB RAM)
A151: SS-D3 | B151: D3 (4 cores, 14GB RAM)
A152: SS-D4 | B152: D4 (8 cores, 28GB RAM)
A153: SW-A0 | B153: A0 Extra Small (1 core, 0.75GB RAM)
A154: SW-A1 | B154: A1 Small (1 core, 1.75GB RAM)
A155: SW-A2 | B155: A2 Medium (2 cores, 3.5GB RAM)
A156: SW-A3 | B156: A3 Large (4 cores, 7GB RAM)
A157: SW-A4 | B157: A4 Extra Large (8 cores, 14GB RAM)
A158: SW-A5 | B158: A5 (2 cores, 14GB RAM)
A159: SW-A6 | B159: A6 (4 cores, 28GB RAM)
A160: SW-A7 | B160: A7 (8 cores, 56GB RAM)
A161: SW-A8 | B161: A8 (8 cores, 56GB RAM)
A162: SW-A9 | B162: A9 (16 cores, 112GB RAM)
A163: SW-D1 | B163: D1 (1 core, 3.5GB RAM)
A164: SW-D11 | B164: D11 (2 cores, 14GB RAM)
A165: SW-D12 | B165: D12 (4 cores, 28GB RAM)
A166: SW-D13 | B166: D13 (8 cores, 56GB RAM)
A167: SW-D14 | B167: D14 (16 cores, 112GB RAM)
A168: SW-D2 | B168: D2 (2 cores, 7GB RAM)
A169: SW-D3 | B169: D3 (4 cores, 14GB RAM)
A170: SW-D4 | B170: D4 (8 cores, 28GB RAM)

Sheet TCO
C1: Year One - Cost Analysis Azure Cloud vs On Premise vs SaaS | H1: Yearly Azure Cash Flow Recap
A2: Costs Assumptions | B2: Qty | C2: Purchase Cost w/ Services | D2: Costs per Year Spread | E2: On Premise Mth | F2: Azure / O365 Mth | G2: SaaS Compete Mth | I2: OnPrem | J2: Azure/O365 | K2: SaaS Compete
A3: Total Users | B3: =IF(O365Users=0,DesktopCALs+WebClientCALs+LimitedUserCALs,O365Users) -> 3 | H3: Year 1 | I3: =IF(FinanceAmountYear1=0,SUM(I39:I42)*12,SUM(I39:I42)*12+FinanceAmountYear1) -> 5312.5 | J3: =IF(FinanceAmountYear1=0,SUM(J39:J42)*12*AzureRunHoursDiscount,SUM(J39:J42)*12*AzureRunHoursDiscount+FinanceAmountYear1) -> 1607.04 | K3: =SUM(K39:K42)*12+AmortizedSWCompetePerMonth*12 -> 12300
A4: ERP Users | B4: =ERPUserCount -> 3 | H4: Year 2 | I4: =IF(FinanceAmountYear2=0,SUM(L39:L42)*12,SUM(L39:L42)*12+FinanceAmountYear2)-IF(AmortizeYears<2,(AmortizedSWOnPremPerMonth+AmortizedHWOnPremPerMonth)*12,0) -> 5312.5 | J4: =IF(FinanceAmountYear2=0,SUM(M39:M42)*12*AzureRunHoursDiscount,SUM(M39:M42)*12*AzureRunHoursDiscount+FinanceAmountYear2)-IF(AmortizeYears<2,AmortizedSWOnAzurePerMonth*12*AzureRunHoursDiscount,0) -> 1607.04 | K4: =SUM(N39:N42)*12+AmortizedSWCompetePerMonth*12-IF(AmortizeYears<2,AmortizedSWCompetePerMonth*12,0) -> 12300
A5: Amortize Period Years | B5: 4 | H5: Year 3 | I5: =IF(FinanceAmountYear3=0,SUM(O39:O42)*12,SUM(O39:O42)*12+FinanceAmountYear3)-IF(AmortizeYears<3,(AmortizedSWOnPremPerMonth+AmortizedHWOnPremPerMonth)*12,0) -> 5312.5 | J5: =IF(FinanceAmountYear3=0,SUM(P39:P42)*12*AzureRunHoursDiscount,SUM(P39:P42)*12*AzureRunHoursDiscount+FinanceAmountYear3)-IF(AmortizeYears<3,AmortizedSWOnAzurePerMonth*12*AzureRunHoursDiscount,0) -> 1607.04 | K5: =SUM(Q39:Q42)*12+AmortizedSWCompetePerMonth*12-IF(AmortizeYears<3,AmortizedSWCompetePerMonth*12,0) -> 12300
A6: Include Admin & Overhead costs | B6: No | H6: Year 4 | I6: =IF(FinanceAmountYear3=0,SUM(R39:R42)*12,SUM(R39:R42)*12+FinanceAmountYear4)-IF(AmortizeYears<4,(AmortizedSWOnPremPerMonth+AmortizedHWOnPremPerMonth)*12,0) -> 5312.5 | J6: =IF(FinanceAmountYear4=0,SUM(S39:S42)*12*AzureRunHoursDiscount,SUM(S39:S42)*12*AzureRunHoursDiscount+FinanceAmountYear4)-IF(AmortizeYears<4,AmortizedSWOnAzurePerMonth*12*AzureRunHoursDiscount,0) -> 1607.04 | K6: =SUM(T39:T42)*12+AmortizedSWCompetePerMonth*12-IF(AmortizeYears<4,AmortizedSWCompetePerMonth*12,0) -> 12300
A7: Include 5 year hardware refresh in totals | B7: Yes | H7: Year 5 | I7: =SUM(U39:U42)*12-(AmortizedSWOnPremPerMonth+AmortizedHWOnPremPerMonth)*12 -> 2500 | J7: =SUM(V39:V42)*12*AzureRunHoursDiscount-(AmortizedSWOnAzurePerMonth)*12*AzureRunHoursDiscount -> 1607.04 | K7: =SUM(W39:W42)*12 -> 10800
A8: ="Software & Services CostsY/M/M/M - " -> Software & Services CostsY/M/M/M - | B8: =IF(TypeOfERPLicence="PERP","Perpetual ERP","Saas ERP") -> Perpetual ERP | E8: =SUM(E9:E16) -> 151.0416667 | F8: =SUM(F9:F16) -> 133.92 | G8: =SUM(G9:G16) -> 900 | H8: Total Years 10 & 15 | I8: =SUM(I3:I6)+I7*6-IF(HardwareRefresh="No",AmortizedHWOnPremPerMonth*12*AmortizeYears,0) -> 36250 | J8: =SUM(J3:J6)+J7*6 -> 16070.4 | K8: =SUM(K3:K6)+K7*6 -> 114000
A9: =IF(LEFT(ServerClass1Type,1)="S","Microsoft OS (Server & CAL) w/SQL","Microsoft OS (Server & CAL) ") -> Microsoft OS (Server & CAL) | B9: =TotalServerCount+IF(Office365="Yes",1,0) -> 1 | C9: 3000 | D9: =B9*C9/AmortizeYears -> 750 | E9: =D9/12 -> 62.5 | F9: =(ServerClass1Mth+ServerClass2Mth+ServerClass4Mth+StorageMth+ (IF(ServerClass5Mth<>"",ServerClass5Mth,0)))+(IF(TypeOfSQLLicense<>"VM-SQL",ServerClass3Mth,0)) -> 133.92 | G9: NA | I9: =I8+I7*5-IF(HardwareRefresh="No",AmortizedHWOnPremPerMonth*12*AmortizeYears,0) -> 48750 | J9: =J8+J7*5 -> 24105.6 | K9: =K8+K7*5 -> 168000
A10: Microsoft SQL Server (Azure per/Mth) | E10: NA | F10: =IF(TypeOfSQLLicense="VM-SQL",ServerClass3Mth,0) -> 0 | G10: NA
A11: Microsoft SQL Server (Amortized) | B11: 1 | C11: 3500 | D11: =B11*C11/AmortizeYears -> 875 | E11: =D11/12 -> 72.91666667 | F11: NA | G11: NA
A12: Dynamics ERP (PERP) Amortized | C12: =IF(TypeOfERPLicence="Perp",IF(PartnerFeesOption="Yes",PartnerFees,0),0) -> 0 | D12: =C12/AmortizeYears -> 0 | E12: =D12/12 -> 0 | F12: =D12/12 -> 0 | G12: NA
A13: Microsoft Office (OnPrem & Office 365) | B13: =B3 -> 3 | C13: 250 | D13: =B13*C13/AmortizeYears -> 187.5 | E13: =D13/12 -> 15.625 | F13: =IF(Office365="Yes",O365Users*O365PlanCost,0) -> 0 | G13: NA
A14: Dynamics ERP License & Service (SaaS) | C14: =IF(TypeOfERPLicence="SPLA", TCOERPUserCount*MthSPLA*12+ IF(FinanceOption="Yes",FinanceAmountYear1,0)+IF(PartnerFeesOption="Yes",PartnerFees/AmortizeYears,0), 0) -> 0 | D14: =C14 -> 0 | E14: =D14/12 -> 0 | F14: =D14/12 -> 0 | G14: NA
A15: Microsoft Cloud (CRM/RDS) Options | F15: =IF(CRMOLOption="Yes",CRMOLPlanCost*CRMOLUsers,0) + IF(RDServices="Yes",RDPSPLA*DesktopCALs,0) -> 0 | G15: NA
A16: Competive SaaS + Services - (SaaS) | C16: =SaaSImplementation+SaaSSetup -> 6000 | D16: =C16/AmortizeYears -> 1500 | E16: NA | F16: NA | G16: =(TCOERPUserCount*SaaSCompete) -> 900
A17: Amortized Items Total | E17: =E9+E11+E12+E13 -> 151.0416667 | F17: =F12 -> 0 | G17: =((SaaSImplementation+SaaSSetup)/12/AmortizeYears) -> 125
A18: Server Hardware & Enviromental | E18: =SUM(E19:E21) -> 183.3333333 | F18: =SUM(F19:F21) -> 0 | G18: =SUM(G19:G22) -> 0 | H18: Year | I18: Deployment | J18: Software & Services | K18: =$A$18 -> Server Hardware & Enviromental | L18: =$A$23 -> Monthly Maintence Costs | M18: =$A$29 -> Admin & Overhead | O18: Row Labels | P18: Software Services Costs | Q18: Server HW Costs | R18: Mth Costs | S18: Admin & Overhead
A19: On Premise Servers Amortized | B19: =TotalServerCount+IF(Office365="Yes",1,0) -> 1 | C19: 4000 | D19: =B19*C19/AmortizeYears -> 1000 | E19: =D19/12 -> 83.33333333 | H19: Year 1 | I19: OnPrem | J19: =E8+D7 -> 151.0416667 | K19: =$E$18 -> 183.3333333 | L19: =$E$23 -> 108.3333333 | M19: =$E$29 -> 0 | O19: Year 1 | P19: 29319.728 | Q19: 9000 | R19: 9000 | S19: 0
A20: Other Physical Costs (power, misc) | D20: 100 | E20: =D20 -> 100 | H20: Year 1 | I20: OnLine | J20: =F8+D7 -> 133.92 | K20: =$F$18 -> 0 | L20: =$F$23 -> 0 | M20: =$F$29 -> 0 | O20: OnLine | P20: 13319.728 | Q20: 0 | R20: 3000 | S20: 0
H21: Year 2 | I21: OnPrem | J21: =$E$8 -> 151.0416667 | K21: =$E$18 -> 183.3333333 | L21: =$E$23 -> 108.3333333 | M21: =$E$29 -> 0 | O21: OnPrem | P21: 16000 | Q21: 9000 | R21: 6000 | S21: 0
A22: Amortized Items Total | D22: =D19 -> 1000 | E22: =E19 -> 83.33333333 | H22: Year 2 | I22: OnLine | K22: =$F$18 -> 0 | L22: =$F$23 -> 0 | M22: =$F$29 -> 0 | O22: Year 2 | P22: 11000 | Q22: 9000 | R22: 9000 | S22: 0
A23: Monthly Maintence Costs | E23: =SUM(E24:E28) -> 108.3333333 | F23: =SUM(F24:F28) -> 0 | G23: =SUM(G24:G28) -> 0 | H23: Year 3 | I23: OnPrem | J23: =$E$8 -> 151.0416667 | K23: =$E$18 -> 183.3333333 | L23: =$E$23 -> 108.3333333 | M23: =$E$29 -> 0 | O23: OnLine | Q23: 0 | R23: 3000 | S23: 0
A24: Microsoft Software Assurance | E24: =(C9+C11)*0.2/12 -> 108.3333333 | H24: Year 3 | I24: OnLine | K24: =$F$18 -> 0 | L24: =$F$23 -> 0 | M24: =$F$29 -> 0 | O24: OnPrem | P24: 11000 | Q24: 9000 | R24: 6000 | S24: 0
H25: Year 4 | I25: OnPrem | J25: =$E$8 -> 151.0416667 | K25: =$E$18 -> 183.3333333 | L25: =$E$23 -> 108.3333333 | M25: =$E$29 -> 0 | O25: Year 3 | P25: 11000 | Q25: 9000 | R25: 9000 | S25: 0
A26: Dynamics ERP BREP Support | C26: =IF(TypeOfERPLicence="PERP",C12*0.5*0.2,0) -> 0 | D26: =C26 -> 0 | E26: =$D$26/12 -> 0 | F26: =$D$26/12 -> 0 | H26: Year 4 | I26: OnLine | K26: =$F$18 -> 0 | L26: =$F$23 -> 0 | M26: =$F$29 -> 0 | O26: OnLine | Q26: 0 | R26: 3000 | S26: 0
H27: Year 5 | I27: OnPrem | J27: =$E$8 -> 151.0416667 | K27: =$E$18 -> 183.3333333 | L27: =$E$23 -> 108.3333333 | M27: =$E$29 -> 0 | O27: OnPrem | P27: 11000 | Q27: 9000 | R27: 6000 | S27: 0
H28: Year 5 | I28: OnLine | K28: =$F$18 -> 0 | L28: =$F$23 -> 0 | M28: =$F$29 -> 0 | O28: Year 4 | P28: 11000 | Q28: 9000 | R28: 9000 | S28: 0
A29: Admin & Overhead | E29: =SUM(E30:E34) -> 0 | F29: =SUM(F30:F34) -> 0 | G29: =SUM(G30:G34) -> 0 | O29: OnLine | Q29: 0 | R29: 3000 | S29: 0
A30: Wages On-premise support | B30: 3 | C30: 60000 | D30: =B30*C30 -> 180000 | E30: =IF(IncludeAdmin="Yes",D30/12,0) -> 0 | O30: OnPrem | P30: 11000 | Q30: 9000 | R30: 6000 | S30: 0
A31: Wages Dynamics ERP Online Support | B31: 2 | C31: 60000 | D31: =B31*C31 -> 120000 | F31: =IF(IncludeAdmin="Yes",D31/12,0) -> 0 | G31: =IF(IncludeAdmin="Yes",E31,0) -> 0 | O31: Year 5 | P31: 11000 | Q31: 9000 | R31: 9000 | S31: 0
A32: Wages On-line SaaS Support | B32: 1.5 | C32: 60000 | D32: =B32*C32 -> 90000 | G32: =IF(IncludeAdmin="Yes",D32/12,0) -> 0 | O32: OnLine | Q32: 0 | R32: 3000 | S32: 0
O33: OnPrem | P33: 11000 | Q33: 9000 | R33: 6000 | S33: 0
O34: Grand Total | P34: 73319.728 | Q34: 45000 | R34: 45000 | S34: 0
A35: Total Per Month | E35: =SUM(E9:E17,E19:E21,E24:E26,E30:E33) -> 593.75 | F35: =SUM(F9:F17,F19:F21,F24:F26,F30:F33) -> 133.92 | G35: 1025
A37: Longterm TCO Impact On Permise vs Azure vs SaaS compete (Cash Flow Forecast) | I37: Year 1-5 Monthly | L37: Year 2 | O37: Year 3 | R37: Year 4 | U37: Year 5 | X37: 5 Year Recap
C38: 3 Yr | D38: 5 Yr | E38: 10 Yr | F38: 15 Yr | I38: OnPrem | J38: Azure | K38: SaaS Compete | L38: OnPrem | M38: Azure | N38: SaaS Compete | O38: OnPrem | P38: Azure | Q38: SaaS Compete | R38: OnPrem | S38: Azure | T38: SaaS Compete | U38: OnPrem | V38: Azure | W38: SaaS Compete | X38: OnPrem | Y38: Azure | Z38: SaaS Compete
A39: ="Dynamics ERP OnPrem:" & TypeOfERPLicence -> Dynamics ERP OnPrem:PERP | C39: =SUM($I$3:$I$5) -> 15937.5 | D39: =SUM($I$3:$I$5)+$I$6+$I$7 -> 23750 | E39: =I8 -> 36250 | F39: =I9 -> 48750 | H39: =$A$8 -> Software & Services CostsY/M/M/M - | I39: =E8 -> 151.0416667 | J39: =F8 -> 133.92 | K39: =G8 -> 900 | L39: =$E$8 -> 151.0416667 | M39: =$F$8 -> 133.92 | N39: =$G$8 -> 900 | O39: =$E$8 -> 151.0416667 | P39: =$F$8 -> 133.92 | Q39: =$G$8 -> 900 | R39: =$E$8 -> 151.0416667 | S39: =$F$8 -> 133.92 | T39: =$G$8 -> 900 | U39: =$E$8 -> 151.0416667 | V39: =$F$8 -> 133.92 | W39: =$G$8 -> 900 | X39: =I39+L39+O39+R39+U39 -> 755.2083333 | Y39: =J39+M39+P39+S39+V39 -> 669.6 | Z39: =K39+N39+Q39+T39+W39 -> 4500
A40: ="Dynamics ERP Azure :" & TypeOfERPLicence -> Dynamics ERP Azure :PERP | C40: =SUM($J$3:$J$5) -> 4821.12 | D40: =SUM($J$3:$J$5)+$J$6+$J$7 -> 8035.2 | E40: =J8 -> 16070.4 | F40: =J9 -> 24105.6 | H40: =$A$18 -> Server Hardware & Enviromental | I40: =$E$18 -> 183.3333333 | J40: =$F$18 -> 0 | L40: =$E$18 -> 183.3333333 | M40: =$F$18 -> 0 | O40: =$E$18 -> 183.3333333 | P40: =$F$18 -> 0 | R40: =$E$18 -> 183.3333333 | S40: =$F$18 -> 0 | U40: =$E$18 -> 183.3333333 | V40: =$F$18 -> 0 | X40: =I40+L40+O40+R40+U40 -> 916.6666667 | Y40: 0
A41: Competitive SaaS | C41: =SUM($K$3:$K$5) -> 36900 | D41: =SUM($K$3:$K$5)+$K$6+$K$7 -> 60000 | E41: =K8 -> 114000 | F41: =K9 -> 168000 | H41: =$A$23 -> Monthly Maintence Costs | I41: =$E$23 -> 108.3333333 | J41: =$F$23 -> 0 | K41: =$G$23 -> 0 | L41: =$E$23 -> 108.3333333 | M41: =$F$23 -> 0 | N41: =$G$23 -> 0 | O41: =$E$23 -> 108.3333333 | P41: =$F$23 -> 0 | Q41: =$G$23 -> 0 | R41: =$E$23 -> 108.3333333 | S41: =$F$23 -> 0 | T41: =$G$23 -> 0 | U41: =$E$23 -> 108.3333333 | V41: =$F$23 -> 0 | W41: =$G$23 -> 0 | X41: 541.6666667 | Y41: 0 | Z41: =K41+N41+Q41+T41+W41 -> 0
H42: =$A$29 -> Admin & Overhead | I42: =$E$29 -> 0 | J42: =$F$29 -> 0 | K42: =$G$29 -> 0 | L42: =$E$29 -> 0 | M42: =$F$29 -> 0 | N42: =$G$29 -> 0 | O42: =$E$29 -> 0 | P42: =$F$29 -> 0 | Q42: =$G$29 -> 0 | R42: =$E$29 -> 0 | S42: =$F$29 -> 0 | T42: =$G$29 -> 0 | U42: =$E$29 -> 0 | V42: =$F$29 -> 0 | W42: =$G$29 -> 0 | X42: 0 | Y42: 0 | Z42: =K42+N42+Q42+T42+W42 -> 0
I47: ERP | J47: Email Platform | K47: Productivity | L47: Collaboration | M47: Reporting | N47: Directory | O47: CRM | P47: Remote Access
H48: Dynamics | I48: 1 | J48: =IF(Office365="Yes",1,0) -> 0 | K48: =IF(Office365="Yes",1,0) -> 0 | L48: =IF(Office365="Yes",1,0) -> 0 | M48: =IF(SRSServer="Yes",1,0) -> 0 | N48: =IF(DomainController="Yes",1,0) -> 0 | O48: =IF(CRMOLOption="Yes",1,0) -> 0 | P48: =IF(RDServices="Yes",1,0) -> 0
H49: Compete | I49: 1 | J49: 0 | K49: 0 | L49: 0 | M49: 0 | N49: 0 | O49: 0 | P49: 0

Sheet Topology
A30: =IF(LEFT(ServerClass1Type,1)="S","Application Server w/ SQL Server","Application Server no SQL Server") -> Application Server no SQL Server
A31: ="Microsoft Dynamics " & BaseProduct & " Azure Network Topology Proposal for: " &CustomerName -> Microsoft Dynamics GP Azure Network Topology Proposal for: Sample ERP 3 Users
A32: ="Designed by " & PartnerName -> Designed by Contoso Solutions Inc.

Sheet Template

Sheet AzureResources
A1: Title | B1: ="Azure Web Resources " & "Count of links selected to mail: " & LinksToMail & " " -> Azure Web Resources Count of links selected to mail: 7 | C1: Pick Solution Area | D1: Include Link in Mail | E1: =COUNTIFS(D:D,"Yes") -> 7
A2: Performance Guidance for SQL Server in Azure Virtual Machines | B2: http://msdn.microsoft.com/en-us/library/azure/dn248436.aspx | C2: Azure | D2: No
A3: Volume Licensing for Microsoft Products and Online Services | B3: http://www.microsoft.com/licensing/products/products.aspx | C3: Azure | D3: No
A4: What is Azure | B4: http://azure.microsoft.com/en-us/overview/what-is-azure/ | C4: Azure | D4: No
A5: Azure Price Calculator | B5: http://azure.microsoft.com/en-us/pricing/calculator/ | C5: Azure | D5: No
A6: Gartner Azure Magic Quadrant | B6: http://blogs.technet.com/b/in_the_cloud/archive/2014/10/07/the-quadruple-msft-is-a-leader-in-four-gartner-mq-s.aspx | C6: Azure | D6: Yes
A7: Azure P2V Machine Converter | B7: http://blogs.technet.com/b/server-cloud/archive/2014/10/13/available-now-the-microsoft-virtual-machine-converter-3-0.aspx | C7: Azure | D7: No
A8: D-Series Performance Expectations | B8: http://azure.microsoft.com/blog/2014/10/06/d-series-performance-expectations/ | C8: Azure | D8: Yes
A9: High-Performance Storage for Azure Virtual Machine Workloads | B9: http://azure.microsoft.com/blog/2014/12/11/introducing-premium-storage-high-performance-storage-for-azure-virtual-machine-workloads/ | C9: Azure | D9: Yes
A10: Download Running Critical Application Workloads on Microsoft Azure Virtual Machines | B10: https://www.microsoft.com/en-us/download/details.aspx?id=45328 | C10: Azure | D10: No
A11: Set up endpoints on a virtual machine in Azure | B11: http://azure.microsoft.com/en-us/documentation/articles/virtual-machines-set-up-endpoints/ | C11: Azure | D11: No
A12: Microsoft partner learning paths | B12: https://mspartnerlp.mspartner.microsoft.com/LearningPath | C12: Azure | D12: Yes
A13: Migrating VMs to Azure | B13: http://blogs.technet.com/b/msuspartner/archive/2014/11/13/microsoft-azure-partner-community-migrating-vms-to-azure.aspx | C13: Azure | D13: No
A14: Disaster Recovery and High Availability – Building Resilient Cloud Applications | B14: http://blogs.technet.com/b/msuspartner/archive/2014/10/14/microsoft-azure-partner-community-focus-on-disaster-recovery-and-high-availability-building-resilient-cloud-applications.aspx | C14: Azure | D14: No
A15: Azure Partner Cloud Profitability Guide | B15: https://partner.microsoft.com/download/global/40197805 | C15: Azure | D15: No
A16: Performance Best Practices for SQL Server in Azure Virtual Machines | B16: http://msdn.microsoft.com/en-us/library/azure/dn133149.aspx | C16: Azure | D16: No
A17: Azure Powershell Script Center | B17: https://gallery.technet.microsoft.com/scriptcenter/site/search?f%5B0%5D.Type=RootCategory&f%5B0%5D.Value=WindowsAzure | C17: Azure | D17: No
A18: Start Windows Azure Virtual Machines on a Schedule | B18: https://gallery.technet.microsoft.com/scriptcenter/Start-Windows-Azure-b6c179b6 | C18: Azure | D18: Yes
A19: Stop Windows Azure Virtual Machines on a Schedule | B19: https://gallery.technet.microsoft.com/scriptcenter/Start-Windows-Azure-b6c179b6 | C19: Azure | D19: Yes
A20: Azure region speed optimization test | B20: http://azurespeedtest.azurewebsites.net/ | C20: Azure | D20: No
A21: Catalogic Case Study -Dynamics GP on Azure | B21: http://www.microsoft.com/casestudies/Case_Study_Detail.aspx?casestudyid=710000004498 | C21: GP | D21: No
A22: Microsoft Dynamics GP Hosting Guide | B22: https://mbs.microsoft.com/partnersource/northamerica/deployment/documentation/white-papers/MSDGPhostingguide | C22: GP | D22: No
A23: Experience Dynamics GP | B23: http://www.dynamicsgptestdrive.com/en-US/Guides/Experience%20Microsoft%20Dynamics%20GP | C23: GP | D23: No
A24: Gain insight on financial performance | B24: http://www.dynamicsgptestdrive.com/en-US/Guides/Gain%20insight%20on%20financial%20performance | C24: GP | D24: No
A25: Make it easier to enter sales orders | B25: http://www.dynamicsgptestdrive.com/en-US/Guides/Make%20it%20easier%20to%20enter%20orders | C25: GP | D25: No
A26: Make smarter purchasing decsions | B26: http://www.dynamicsgptestdrive.com/en-US/Guides/Make%20smarter%20purchasing%20decisions | C26: GP | D26: No
A27: Microsoft Dynamics NAV 2013 and Microsoft Dynamics GP 2013 Licensing Guide | B27: https://mbs.microsoft.com/partnersource/northamerica/pricing-ordering/pricing-ordering-news/MSDNAVGP2013LicensingGuide | C27: SMBERP | D27: No
A28: Dynamic SMB ERP SPLA PartnerSource | B28: https://mbs.microsoft.com/partnersource/northamerica/sales-marketing/marketing-collateral/messaging-frameworks/MSDYERP_SPLA | C28: SMBERP | D28: No
A29: Microsoft Dynamics NAV 2015 and Microsoft Dynamics GP 2015 Pricing and Licensing | B29: https://mbs.microsoft.com/partnersource/northamerica/pricing-ordering/licensing-policies/perpetual-licensing | C29: SMBERP | D29: No
A30: SMB Resource Center - R2R Resources | B30: https://mbs.microsoft.com/partnersource/northamerica/partner-essentials/smb-resource-center | C30: SMBERP | D30: No
A31: Captain Stack Sales Tools | B31: http://blogs.msdn.com/b/captain_stack/ | C31: SMBERP | D31: No
A32: DIY Dynamics | B32: https://mbs.microsoft.com/partnersource/northamerica/pricing-ordering/pricing-ordering-news/DIY_Dynamics | C32: SMBERP | D32: No
A33: Syncing Domain Controllers between on-Premises and Windows Azure | B33: http://blogs.technet.com/b/uspartner_ts2team/archive/2014/01/17/windows-azure-syncing-domain-controllers-between-on-premise-and-windows-azure.aspx | C33: Azure | D33: Yes

Sheet SavedModels
A1: Model Name | B1: Time of Model | C1: Desktop CALs | D1: WebClient CALs | E1: LimitedUser CALs | F1: O365 Users | G1: CRMOL Users | H1: DailyRun Hours | I1: TypeOfERP Licence | J1: TypeOfSQL License | K1: Domain Controller | L1: Office365 | M1: CRMOL Option | N1: RDS Services | O1: SRS Server | P1: Finance Option | Q1: Partner Fees Option | R1: O365Plan Cost | S1: CRMOLPlan Cost | T1: RDP SPLA | U1: Mth SPLA | V1: Finance Amount | W1: Partner Fees | X1: Partner Monthly Fees | Y1: Currency | Z1: Azure Tier | AA1: Server Class1 Type | AB1: Server Class1 Qty | AC1: Server Class2 Type | AD1: Server Class2 Qty | AE1: Server Class3 Type | AF1: Server Class3 Qty | AG1: Server Class4 Type | AH1: Server Class4 Qty | AI1: Disk Storage | AJ1: Server Class5 Type | AK1: Serve rClass5 Qty | AL1: SQLServer Type | AM1: Finance Rate | AN1: Finance Period | AO1: Azure SLA | AP1: Base Product | AQ1: 4 Year Invstment
A2: Sample ERP Prospect - 3 user model | B2: 2015-01-06T09:42:09 | C2: 3 | D2: 0 | E2: 0 | F2: 3 | G2: 3 | H2: 24 | I2: PERP | J2: PERP | K2: No | L2: No | M2: No | N2: No | O2: No | P2: No | Q2: Yes | R2: 15 | S2: 65 | T2: 4 | U2: 130 | V2: 5000 | W2: 5000 | X2: 0 | Y2: USD | Z2: Standard Tier | AA2: VM-A2 | AB2: 1 | AC2: VM-A1 | AD2: 0 | AE2: VM-A2 | AF2: 0 | AG2: SW-A1 | AH2: 0 | AI2: A-5GB | AL2: SW | AM2: 0.1 | AN2: 12 | AO2: No | AP2: GP | AQ2: 11428.16
A3: Sample ERP Prospect - 5 user with SQL | B3: 2015-01-06T09:53:59 | C3: 5 | D3: 0 | E3: 0 | F3: 5 | G3: 5 | H3: 24 | I3: PERP | J3: VM-SQL | K3: No | L3: No | M3: No | N3: No | O3: No | P3: No | Q3: Yes | R3: 15 | S3: 65 | T3: 4 | U3: 130 | V3: 5000 | W3: 5000 | X3: 0 | Y3: USD | Z3: Standard Tier | AA3: VM-A2 | AB3: 1 | AC3: VM-A1 | AD3: 0 | AE3: SW-A2 | AF3: 1 | AG3: SW-A1 | AH3: 0 | AI3: A-5GB | AL3: SW | AM3: 0.1 | AN3: 12 | AO3: No | AP3: GP | AQ3: 18999.1
